[Event "FIDE Womens Grand Swiss 2021"]
[Site "Riga"]
[Date "2021.11.07"]
[Round "11.24"]
[White "February, Jesse Nikki"]
[Black "Bivol, Alina"]
[Result "1/2-1/2"]
[ECO "B15"]
[WhiteElo "1857"]
[BlackElo "2392"]
[Annotator "RC"]
[PlyCount "191"]
[EventDate "2021.10.27"]
[EventType "swiss"]
[EventCountry "LAT"]
[Tiebreak "Cut1 Buchholz+Sonneborn-Berger (Swiss)"]
[SourceTitle "playchess.com"]
[Source "ChessBase"]
[SourceQuality "1"]
[TimeControl "40/6000+30:20/3000+30:900+30"]

1. e4 {[%emt 0:10:14]} c6 {[%emt 0:10:07]} 2. d4 {[%emt 0:00:32]} d5 {[%emt 0:
00:06]} 3. Nc3 {[%emt 0:00:41]} dxe4 {[%emt 0:00:21]} 4. Nxe4 {[%emt 0:00:12]}
Nf6 {[%emt 0:00:03]} 5. Nxf6+ {[%emt 0:00:48]} exf6 {[%emt 0:00:10]} 6. Be3 {
[%emt 0:00:49]} Bd6 {[%emt 0:00:29]} 7. Bd3 {[%emt 0:01:13]} Nd7 {[%emt 0:00:
22]} 8. Qd2 {[%emt 0:01:40]} O-O {[%emt 0:01:16]} 9. Ne2 {[%emt 0:01:57]} Re8 {
[%emt 0:00:14]} 10. O-O-O {[%emt 0:02:20]} Nf8 {[%emt 0:00:21]} 11. Ng3 {
[%emt 0:01:35]} a5 {[%emt 0:03:46]} 12. Nf5 {[%emt 0:01:42]} Bxf5 {[%emt 0:00:
16]} 13. Bxf5 {[%emt 0:00:20]} a4 {[%emt 0:01:06]} 14. g4 {[%emt 0:06:03]} Qc7
{[%emt 0:01:26]} 15. h4 {[%emt 0:05:02]} c5 {[%emt 0:03:34]} 16. dxc5 {[%emt 0:
02:11]} Bxc5 {[%emt 0:00:15]} 17. Bxc5 {[%emt 0:09:22]} Qxc5 {[%emt 0:00:07]}
18. a3 {[%emt 0:00:53]} b5 {[%emt 0:02:43]} 19. Rhe1 {[%emt 0:02:39]} Rxe1 {
[%emt 0:04:38]} 20. Rxe1 {[%emt 0:01:32]} g6 {[%emt 0:06:34]} 21. Be4 {[%emt 0:
01:54]} Rc8 {[%emt 0:04:45]} 22. Re3 {[%emt 0:07:34]} Qc4 {[%emt 0:06:41]} 23.
Qd3 {[%emt 0:03:14]} Qa2 {[%emt 0:01:35]} 24. Qxb5 {[%emt 0:01:55]} Qa1+ {
[%emt 0:01:57]} 25. Kd2 {[%emt 0:01:29]} Qg1 {[%emt 0:00:50]} 26. Qe2 {[%emt 0:
03:55]} Ne6 {[%emt 0:00:54]} 27. Rg3 {[%emt 0:15:13]} Qb1 {[%emt 0:00:52]} 28.
Qb5 {[%emt 0:02:01]} Kg7 {[%emt 0:09:37]} 29. g5 {[%emt 0:03:40]} fxg5 {
[%emt 0:00:16]} 30. Qe5+ {[%emt 0:02:33]} Kg8 {[%emt 0:00:12]} 31. hxg5 {
[%emt 0:00:35]} Nc5 {[%emt 0:02:22]} 32. Rc3 {[%emt 0:07:29]} Qg1 {[%emt 0:01:
19]} 33. Ke2 {[%emt 0:04:37]} Qg4+ {[%emt 0:02:28]} 34. Bf3 {[%emt 0:00:20]}
Qd7 {[%emt 0:00:23]} 35. Kf1 {[%emt 0:01:38]} Ne6 {[%emt 0:01:45]} 36. Rxc8+ {
[%emt 0:03:03]} Qxc8 {[%emt 0:00:01]} 37. Bd5 {[%emt 0:02:31]} Ng7 {[%emt 0:08:
03]} 38. Qe7 {[%emt 0:01:43]} Qh3+ {[%emt 0:03:06]} 39. Ke1 {[%emt 0:00:16]}
Ne6 {[%emt 0:00:22]} 40. Bxe6 {[%emt 0:00:49]} fxe6 {[%emt 0:00:02]} 41. Qd8+ {
[%emt 0:52:06]} Kf7 {[%emt 0:51:33]} 42. Qc7+ {[%emt 0:00:00]} Kg8 {[%emt 0:00:
00]} 43. Qe5 {[%emt 0:00:00]} Qg4 {[%emt 0:00:00]} 44. Kd2 {[%emt 0:00:00]} Qc4
{[%emt 0:00:00]} 45. f4 {[%emt 0:00:00]} Kf7 {[%emt 0:00:00]} 46. Qf6+ {
[%emt 0:00:00]} Kg8 {[%emt 0:00:00]} 47. c3 {[%emt 0:00:00]} Qc6 {[%emt 0:01:
18]} 48. Qe5 {[%emt 0:00:00]} Qg2+ {[%emt 0:00:00]} 49. Kd3 {[%emt 0:00:00]}
Qc6 {[%emt 0:00:00]} 50. Kd4 {[%emt 0:00:00]} Qb6+ {[%emt 0:00:00]} 51. Kc4 {
[%emt 0:00:00]} Kf7 {[%emt 0:00:00]} 52. Qf6+ {[%emt 0:00:00]} Kg8 {[%emt 0:00:
00]} 53. Qd4 {[%emt 0:00:00]} Qb3+ {[%emt 0:00:00]} 54. Kc5 {[%emt 0:00:00]}
Qxb2 {[%emt 0:00:00]} 55. Qd8+ {[%emt 0:00:00]} Kf7 {[%emt 0:00:00]} 56. Qf6+ {
[%emt 0:00:00]} Kg8 {[%emt 0:00:00]} 57. Qxe6+ {[%emt 0:00:00]} Kf8 {[%emt 0:
00:00]} 58. Qf6+ {[%emt 0:00:00]} Kg8 {[%emt 0:00:00]} 59. Qd8+ {[%emt 0:00:00]
} Kf7 {[%emt 0:00:00]} 60. Qd7+ {[%emt 0:00:35]} Kf8 {[%emt 0:00:00]} 61. Qxa4
{[%emt 0:17:59]} Qxc3+ {[%emt 0:11:26]} 62. Kb5 {[%emt 0:00:50]} Qd3+ {[%emt 0:
00:19]} 63. Kc5 {[%emt 0:01:58]} Qe3+ {[%emt 0:02:05]} 64. Kd5 {[%emt 0:00:20]}
Qd3+ {[%emt 0:02:01]} 65. Qd4 {[%emt 0:01:12]} Qf5+ {[%emt 0:07:40]} 66. Kd6 {
[%emt 0:00:24]} Qb1 {[%emt 0:02:07]} 67. Qh8+ {[%emt 0:00:20]} Kf7 {[%emt 0:00:
01]} 68. Qxh7+ {[%emt 0:00:30]} Kf8 {[%emt 0:00:01]} 69. Qh8+ {[%emt 0:00:40]}
Kf7 {[%emt 0:00:04]} 70. Qh7+ {[%emt 0:00:05]} Kf8 {[%emt 0:00:07]} 71. Qe7+ {
[%emt 0:00:05]} Kg8 {[%emt 0:00:05]} 72. Qe6+ {[%emt 0:00:22]} Kh7 {[%emt 0:00:
37]} 73. Ke7 {[%emt 0:01:18]} Kg7 {[%emt 0:04:28]} 74. Qf6+ {[%emt 0:00:45]}
Kg8 {[%emt 0:00:46]} 75. Qf7+ {[%emt 0:00:34]} Kh8 {[%emt 0:00:00]} 76. Qd5 {
[%emt 0:02:11]} Qc1 {[%emt 0:01:06]} 77. Qe5+ {[%emt 0:00:26]} Kh7 {[%emt 0:01:
35]} 78. Kf6 {[%emt 0:01:07]} Qc6+ {[%emt 0:01:51]} 79. Qe6 {[%emt 0:00:31]}
Qc3+ {[%emt 0:00:07]} 80. Kf7 {[%emt 0:00:46]} Qc7+ {[%emt 0:04:28]} 81. Ke8 {
[%emt 0:00:19]} Qb8+ {[%emt 0:00:51]} 82. Ke7 {[%emt 0:00:14]} Qc7+ {[%emt 0:
00:15]} 83. Qd7 {[%emt 0:01:25]} Qxf4 {[%emt 0:02:04]} 84. Ke6+ {[%emt 0:00:15]
} Kg8 {[%emt 0:00:39]} 85. Qd8+ {[%emt 0:00:25]} Kh7 {[%emt 0:00:11]} 86. Qe7+
{[%emt 0:00:33]} Kg8 {[%emt 0:00:08]} 87. Qe8+ {[%emt 0:00:34]} Kg7 {[%emt 0:
00:06]} 88. Qe7+ {[%emt 0:00:25]} Kg8 {[%emt 0:00:08]} 89. Kd7 {[%emt 0:00:40]}
Qa4+ {[%emt 0:00:22]} 90. Ke6 {[%emt 0:00:29]} Qe4+ {[%emt 0:00:40]} 91. Kd6 {
[%emt 0:00:21]} Qd4+ {[%emt 0:00:09]} 92. Kc6 {[%emt 0:00:38]} Qa4+ {[%emt 0:
01:32]} 93. Kb6 {[%emt 0:00:27]} Qb3+ {[%emt 0:00:14]} 94. Qb4 {[%emt 0:01:04]}
Qe6+ {[%emt 0:00:31]} 95. Kb5 {[%emt 0:00:19]} Qd7+ {[%emt 0:00:27]} 96. Ka6 {
[%emt 0:00:52]} 1/2-1/2

[Event "FIDE Womens Grand Swiss 2021"]
[Site "Riga"]
[Date "2021.11.07"]
[Round "11.25"]
[White "Arakhamia-Grant, Ketevan"]
[Black "Golsta, Madara"]
[Result "1-0"]
[ECO "B23"]
[WhiteElo "2376"]
[BlackElo "2003"]
[Annotator "RC"]
[PlyCount "145"]
[EventDate "2021.10.27"]
[EventType "swiss"]
[EventCountry "LAT"]
[Tiebreak "Cut1 Buchholz+Sonneborn-Berger (Swiss)"]
[SourceTitle "playchess.com"]
[Source "ChessBase"]
[SourceQuality "1"]
[TimeControl "40/6000+30:20/3000+30:900+30"]

1. e4 {[%emt 0:10:02]} c5 {[%emt 0:10:06]} 2. Nc3 {[%emt 0:00:15]} d6 {[%emt 0:
00:21]} 3. f4 {[%emt 0:00:23]} Nc6 {[%emt 0:00:39]} 4. Nf3 {[%emt 0:00:40]} g6
{[%emt 0:00:26]} 5. Bb5 {[%emt 0:00:28]} Bg7 {[%emt 0:01:25]} 6. O-O {[%emt 0:
02:03]} Bd7 {[%emt 0:03:35]} 7. d3 {[%emt 0:02:08]} a6 {[%emt 0:02:00]} 8. Bxc6
{[%emt 0:00:43]} Bxc6 {[%emt 0:00:20]} 9. Qe1 {[%emt 0:00:43]} b5 {[%emt 0:04:
42]} 10. f5 {[%emt 0:06:33]} Nf6 {[%emt 0:04:30]} 11. Qh4 {[%emt 0:18:48]} Qc7
{[%emt 0:07:28]} 12. a4 {[%emt 0:06:02]} b4 {[%emt 0:02:13]} 13. Ne2 {[%emt 0:
00:36]} O-O-O {[%emt 0:02:34]} 14. c3 {[%emt 0:04:13]} gxf5 {[%emt 0:03:49]}
15. exf5 {[%emt 0:02:17]} Qb7 {[%emt 0:04:03]} 16. cxb4 {[%emt 0:03:38]} cxb4 {
[%emt 0:03:31]} 17. Be3 {[%emt 0:03:30]} Rhg8 {[%emt 0:03:44]} 18. Ned4 {
[%emt 0:09:34]} Bd5 {[%emt 0:03:07]} 19. a5 {[%emt 0:00:32]} h5 {[%emt 0:07:40]
} 20. h3 {[%emt 0:10:30]} Ng4 {[%emt 0:05:44]} 21. hxg4 {[%emt 0:02:19]} Bxd4 {
[%emt 0:00:16]} 22. Bxd4 {[%emt 0:01:04]} Rxg4 {[%emt 0:00:18]} 23. Qh3 {
[%emt 0:01:33]} Rdg8 {[%emt 0:00:52]} 24. Rac1+ {[%emt 0:12:42]} Kb8 {[%emt 0:
02:04]} 25. Kh2 {[%emt 0:01:48]} Bxf3 {[%emt 0:06:58]} 26. Rxf3 {[%emt 0:00:55]
} Rxd4 {[%emt 0:00:17]} 27. Rg3 {[%emt 0:02:00]} Rxg3 {[%emt 0:02:29]} 28. Qxg3
{[%emt 0:00:05]} Rg4 {[%emt 0:00:33]} 29. Qf2 {[%emt 0:00:24]} Qb5 {[%emt 0:04:
03]} 30. Re1 {[%emt 0:00:33]} Qb7 {[%emt 0:03:59]} 31. Re3 {[%emt 0:00:47]} Qc7
{[%emt 0:07:45]} 32. Qe1 {[%emt 0:06:38]} Qxa5 {[%emt 0:03:50]} 33. Rxe7 {
[%emt 0:00:10]} Qxf5 {[%emt 0:00:48]} 34. Re8+ {[%emt 0:02:05]} Kc7 {[%emt 0:
00:36]} 35. Qc1+ {[%emt 0:00:41]} Qc5 {[%emt 0:00:54]} 36. Qe1 {[%emt 0:00:06]}
Qc6 {[%emt 0:03:00]} 37. Qe7+ {[%emt 0:00:50]} Kb6 {[%emt 0:00:21]} 38. Qd8+ {
[%emt 0:00:34]} Kb5 {[%emt 0:01:02]} 39. Re2 {[%emt 0:00:06]} b3 {[%emt 0:04:
59]} 40. Qb8+ {[%emt 0:00:53]} Ka4 {[%emt 0:02:37]} 41. Qa7 {[%emt 0:27:23]}
Qb5 {[%emt 0:26:21]} 42. Qxf7 {[%emt 0:11:24]} Rh4+ {[%emt 0:00:48]} 43. Kg1 {
[%emt 0:01:49]} Qxd3 {[%emt 0:06:02]} 44. Qd7+ {[%emt 0:07:05]} Qb5 {[%emt 0:
02:33]} 45. Qe7 {[%emt 0:01:37]} Qc5+ {[%emt 0:05:58]} 46. Re3 {[%emt 0:00:07]}
Rc4 {[%emt 0:02:25]} 47. Kh2 {[%emt 0:00:38]} h4 {[%emt 0:03:09]} 48. Re1 {
[%emt 0:02:13]} d5 {[%emt 0:01:39]} 49. Ra1+ {[%emt 0:00:37]} Kb4 {[%emt 0:00:
53]} 50. Qe1+ {[%emt 0:00:28]} Kb5 {[%emt 0:00:36]} 51. Ra5+ {[%emt 0:00:34]}
Kb6 {[%emt 0:00:06]} 52. Rxc5 {[%emt 0:00:06]} Kxc5 {[%emt 0:00:24]} 53. Qe3+ {
[%emt 0:00:56]} d4 {[%emt 0:01:11]} 54. Qxb3 {[%emt 0:00:11]} Rb4 {[%emt 0:00:
55]} 55. Qc2+ {[%emt 0:01:01]} Kd5 {[%emt 0:00:36]} 56. b3 {[%emt 0:01:14]} Rb5
{[%emt 0:00:11]} 57. Qf5+ {[%emt 0:00:16]} Kd6 {[%emt 0:00:05]} 58. Qf6+ {
[%emt 0:00:48]} Kc5 {[%emt 0:00:05]} 59. Qe5+ {[%emt 0:00:43]} Kb4 {[%emt 0:00:
11]} 60. Qxd4+ {[%emt 0:00:17]} Kxb3 {[%emt 0:00:05]} 61. Qxh4 {[%emt 0:15:22]}
a5 {[%emt 0:15:04]} 62. Qg3+ {[%emt 0:00:35]} Kb4 {[%emt 0:00:15]} 63. Qf4+ {
[%emt 0:00:12]} Ka3 {[%emt 0:00:08]} 64. Qd6+ {[%emt 0:00:45]} Rb4 {[%emt 0:00:
14]} 65. g4 {[%emt 0:00:22]} a4 {[%emt 0:00:05]} 66. g5 {[%emt 0:00:19]} Kb3 {
[%emt 0:00:11]} 67. Qd1+ {[%emt 0:01:20]} Kb2 {[%emt 0:00:29]} 68. Qd2+ {
[%emt 0:00:17]} Kb3 {[%emt 0:00:18]} 69. g6 {[%emt 0:00:30]} Ka3 {[%emt 0:01:
31]} 70. Qc3+ {[%emt 0:00:36]} Rb3 {[%emt 0:00:07]} 71. Qc5+ {[%emt 0:00:06]}
Kb2 {[%emt 0:00:30]} 72. g7 {[%emt 0:00:17]} a3 {[%emt 0:00:16]} 73. g8=Q {
[%emt 0:00:40]} 1-0